[Event "FIDE World Cup"]
[Site "Tbilisi"]
[Date "2017.09.03"]
[Round "1.1"]
[White "Carlsen, Magnus"]
[Black "Balogun, Oluwafemi"]
[Result "1-0"]
[ECO "B06"]
[WhiteElo "2827"]
[BlackElo "2255"]
[Annotator "Sagar Shah"]
[PlyCount "77"]
[EventDate "2017.09.03"]
[EventType "k.o."]
[EventRounds "7"]
[EventCountry "GEO"]
[SourceTitle "CBM 181"]
[Source "ChessBase"]
[SourceDate "2017.11.10"]
[SourceVersion "1"]
[SourceVersionDate "2017.11.10"]
[SourceQuality "1"]
[TimeControl "40/5400+30:1800+30"]

1. e4 {[%emt 0:00:00]} d6 {[%emt 0:01:19]} 2. d4 {[%emt 0:00:00]} g6 {[%emt 0:
00:29]} 3. Bc4 {[%emt 0:00:50] Magnus goes for something that the opponent
would not have prepared.} Nf6 {[%emt 0:02:38]} 4. Qe2 {[%emt 0:00:12] Mikhail
Tal played this before, Carlsen must know this game as he has adopted similar
plan in his game.} Nc6 {[%emt 0:02:59]} 5. Nf3 {[%emt 0:03:23]} Bg7 {[%emt 0:
04:46]} (5... Bg4 6. Bb5 (6. c3 $14) 6... Nd7 7. c3 e5 8. d5 Ncb8 9. h3 Bxf3
10. Qxf3 Be7 11. g3 Bg5 12. Nd2 h5 13. h4 Bh6 14. Nf1 Bxc1 15. Rxc1 a6 16. Ba4
Kf8 17. Ne3 Nf6 18. O-O Nbd7 19. b4 Kg7 20. Bc2 a5 21. a3 axb4 22. cxb4 Nb6 23.
Ra1 Qd7 24. Rfc1 Ra7 25. Bd3 Rha8 26. Rc3 Na4 27. Rc2 Nb6 28. Rc3 Na4 29. Rc2
Nb6 {1/2-1/2 (29) Tal,M (2625)-Matulovic,M (2525) Skopje 1972}) 6. O-O {
[%emt 0:20:34]} Bg4 {[%emt 0:07:18]} 7. c3 {[%emt 0:01:32] Because White has
not developed his knight to c3, he gets to bolster his centre.} O-O {[%emt 0:
09:31]} 8. h3 {[%emt 0:06:29]} Bxf3 {[%emt 0:06:29]} 9. Qxf3 {[%emt 0:00:35] I
would say such positions are a nightmare against Magnus. Not only does he have
the centre, but also the bishop pair.} e5 {[%emt 0:00:22]} 10. Rd1 {[%emt 0:05:
32]} Qe8 {[%emt 0:08:42][%csl Ge4] Getting away from the rook's fire and
threatening to capture the pawn on e4.} 11. d5 {[%emt 0:11:41][%csl Gc4,Gd5]
[%cal Rc4d5] Shutting down your own bishop is not ideal. However, it closes
the centre and gives White the much needed time to complete his development.
Other choices like Be3 or Nd2 did not work as in both cases one of the central
pawns would fall.} Ne7 {[%emt 0:01:46]} 12. Qe2 $14 {[%emt 0:01:25][%csl Gc1,
Gc4,Gd5,Ge4] The position is similar to the King's Indian Defence but the
major difference is that Black is missing the light-squared bishop which is
usually a very important piece.} Nh5 {[%emt 0:06:07]} 13. Bb5 {[%emt 0:07:30]}
Qc8 {[%emt 0:05:59]} 14. Na3 {[%emt 0:01:29]} a6 {[%emt 0:02:55]} 15. Ba4 {
[%emt 0:01:07]} f5 {[%emt 0:08:06] Good strong play by Balogun. He realises
that he must do something active before White can finish his development.} 16.
Bc2 {[%emt 0:03:53]} f4 $6 {[%emt 0:06:42] Closing the position wasn't the
best idea.} (16... fxe4 $5 {looks more reasonable} 17. Bxe4 Nf6 18. Bf3 Qd7 19.
Bg5 Rae8 $11) 17. Qg4 $1 {[%emt 0:04:09] A really good decision, Black's
threat was to play f3 and shatter White's kingside. Now if Black exchanges
queens then White will have a small edge as he has the bishop pair and if
Black doesn't exchange then White will be in a good position to repel Black's
attack.} Qxg4 {[%emt 0:04:06]} (17... Nf6 18. Qxc8 Rfxc8 $14 {gives White a
small edge like in the game.}) (17... Qd8 $5 {keeping the queens on should
have been preferred.}) 18. hxg4 {[%emt 0:01:14]} Nf6 {[%emt 0:00:10]} 19. g5 {
[%emt 0:00:28]} (19. f3 $6 h5 $1 $11) 19... Nd7 {[%emt 0:04:27]} 20. Nc4 {
[%emt 0:00:07]} b6 {[%emt 0:00:38]} 21. b4 {[%emt 0:00:29] As the kingside is
closed White is in a good position to start his activity on the queenside.} h6
{[%emt 0:01:51]} 22. gxh6 {[%emt 0:01:42]} Bxh6 {[%emt 0:00:55]} 23. g4 $5 {
[%emt 0:01:22]} (23. a4 $14 {was also slightly better for White.}) 23... Nf6 {
[%emt 0:01:09]} 24. f3 {[%emt 0:00:04] The kingside is now under control. Over
to the queenside.} Bg5 {[%emt 0:00:15]} 25. Kg2 {[%emt 0:01:38]} Kg7 {[%emt 0:
01:27]} 26. a4 {[%emt 0:00:54]} Bh4 {[%emt 0:01:43][%cal Gh4g3,Gf8h8] Trying
to create counterplay on the kingside with ...Bg3, ...Rh8 and ...Rh2.} 27. Bd2
{[%emt 0:01:32]} g5 {[%emt 0:00:53]} 28. Rh1 {[%emt 0:03:59]} Ng6 {[%emt 0:02:
05]} 29. Kf1 {[%emt 0:00:44][%cal Gh4g3,Gg6h4] Getting away from the line of
fire as ...Bg3 and ...Nh4 was threatened.} Rh8 {[%emt 0:01:37]} 30. Ke2 {
[%emt 0:00:12]} Bg3 {[%emt 0:00:50]} 31. a5 $1 {[%emt 0:01:16]} b5 $6 {[%emt 0:
00:57]} (31... bxa5 {looks odd but this was the best choice as after} 32. Nxa5
Rh4 $1 33. c4 (33. Nc6 Rah8 {and Black will have control over the h-file and
good counterplay.} 34. Rxh4 gxh4 {[%cal Gh4h2]} 35. c4 h3 $11) 33... Rah8 34.
Rxh4 Nxh4 {[%cal Gh4f3] and now White needs to be careful as ...Nxf3 is a nice
tactical idea hanging in there.} 35. Rg1 $11 (35. c5 $2 {will fail to the nice}
Nxf3 $1 36. Kxf3 Rh2 37. Rf1 Rxd2 $19) 35... Nxf3 {is still possible} 36. Kxf3
Rh2 37. Rg2 Rh3 38. Rg1 Rh2 39. Rg2 $11) 32. Na3 {[%emt 0:00:01] White's plan
is very clear. Play c4, then b5-break and finally get a passed a-pawn.} Ne7 {
[%emt 0:00:56]} 33. c4 {[%emt 0:02:22]} c6 {[%emt 0:00:53]} 34. dxc6 {[%emt 0:
01:03]} Nxc6 {[%emt 0:00:09]} 35. Bc3 $1 {[%emt 0:00:05][%csl Rd4][%cal Rc6d4]}
Rxh1 {[%emt 0:05:35]} 36. Rxh1 {[%emt 0:00:02]} bxc4 {[%emt 0:00:43]} 37. Nxc4
{[%emt 0:00:03] Now it's over.} Rb8 {[%emt 0:01:00]} (37... Rd8 38. Nb6 $18 {
[%cal Gc2d3,Gd3a6]}) 38. Nxd6 {[%emt 0:00:29]} Kg6 {[%emt 0:00:30]} (38... Nxb4
39. Nf5+ Kg6 40. Rh6+ Kf7 41. Bb3+ $18) 39. Nf5 {[%emt 0:00:25] White is in
control and Black's king is close to getting mated. Magnus scored his first
win of the event.} 1-0

[Event "FIDE World Cup"]
[Site "Tbilisi"]
[Date "2017.09.04"]
[Round "1.2"]
[White "Wei, Yi"]
[Black "Sambuev, Bator"]
[Result "1-0"]
[ECO "C19"]
[WhiteElo "2748"]
[BlackElo "2529"]
[Annotator "Sagar Shah"]
[PlyCount "91"]
[EventDate "2017.09.03"]
[EventType "k.o."]
[EventRounds "7"]
[EventCountry "GEO"]
[SourceTitle "CBM 181"]
[Source "ChessBase"]
[SourceDate "2017.11.10"]
[SourceVersion "1"]
[SourceVersionDate "2017.11.10"]
[SourceQuality "1"]
[TimeControl "40/5400+30:1800+30"]

1. e4 {[%emt 0:00:00]} e6 {[%emt 0:00:06]} 2. d4 {[%emt 0:00:00]} d5 {[%emt 0:
00:05]} 3. Nc3 {[%emt 0:00:01]} Bb4 {[%emt 0:00:23]} 4. e5 {[%emt 0:00:14]} c5
{[%emt 0:00:08]} 5. a3 {[%emt 0:00:21]} Bxc3+ {[%emt 0:00:15]} 6. bxc3 {
[%emt 0:00:08]} Ne7 {[%emt 0:00:03]} 7. a4 {[%emt 0:00:55]} Qc7 {[%emt 0:03:32]
} 8. Nf3 {[%emt 0:01:46]} b6 {[%emt 0:05:04]} 9. Bb5+ {[%emt 0:00:15]} Bd7 {
[%emt 0:01:08]} 10. Bd3 {[%emt 0:00:25]} Nbc6 {[%emt 0:00:54]} 11. O-O {
[%emt 0:00:54]} h6 {[%emt 0:04:45]} 12. Re1 {[%emt 0:09:13]} O-O {[%emt 0:01:
26]} 13. h4 {[%emt 0:11:41]} c4 {[%emt 0:02:12]} 14. Bf1 {[%emt 0:00:35]} f6 {
[%emt 0:00:45]} 15. h5 {[%emt 0:09:28]} fxe5 {[%emt 0:07:43]} 16. dxe5 {
[%emt 0:13:11]} Rf7 {[%emt 0:02:05]} 17. Ba3 {[%emt 0:01:25]} Raf8 {[%emt 0:00:
46]} 18. Bd6 {[%emt 0:00:27]} Qd8 {[%emt 0:00:19] Sambuev's play has been
natural and he is already threatening to sacrifice an exchange on f3.} 19. Be2
{[%emt 0:02:47]} Rf5 {[%emt 0:07:19] The h5-pawn is hanging now.} 20. Nh4 {
[%emt 0:04:24]} Rf4 {[%emt 0:00:39]} (20... Rxf2 {Taking the pawn was a good
idea.} 21. Bf3 R2xf3 $1 {Perhaps Sambuev didn't like the resulting positions.}
22. Nxf3 Rf4 $11) 21. Bg4 {[%emt 0:00:28]} R8f7 {[%emt 0:05:44]} (21... Rxf2
22. Nf3 Rf4 $5 $13) 22. f3 $16 {[%emt 0:01:46] White is now spoiled for choice.
} d4 {[%emt 0:04:25]} 23. Ng6 $1 {[%emt 0:04:48]} Nd5 {[%emt 0:02:35]} 24. Nxf4
{[%emt 0:00:06]} Rxf4 {[%emt 0:00:43]} 25. cxd4 {[%emt 0:04:22]} Rxd4 {[%emt 0:
00:43]} 26. Qe2 {[%emt 0:07:56]} Qg5 {[%emt 0:04:26]} 27. Qf2 {[%emt 0:02:16]}
Rd2 {[%emt 0:11:10]} 28. Re2 {[%emt 0:00:10]} Rd4 {[%emt 0:00:09]} 29. Ree1 {
[%emt 0:06:24]} Rd2 {[%emt 0:00:09]} 30. Re2 {[%emt 0:00:07]} Rd4 {[%emt 0:00:
04]} 31. Qe1 {[%emt 0:06:44]} g6 $1 {[%emt 0:03:39] A very nice move by Bator,
trying to get in the move h6-h5.} 32. Re4 $6 {[%emt 0:04:24]} (32. hxg6 h5 33.
Bh3 Nf4 $13) (32. Kh1 $1 {A prophylactic move taking away the king from the
g-file.} gxh5 33. Bh3 Nf4 {No more a double attack because of White's last
move.} 34. Re4 Rxe4 35. Qxe4 Qg3 (35... Kh8 36. Rd1 $16) 36. Rg1 $16) 32...
gxh5 {[%emt 0:03:19]} 33. Bh3 {[%emt 0:00:06]} Rd2 {[%emt 0:05:35]} 34. Kh1 {
[%emt 0:04:47]} Rxc2 {[%emt 0:01:38]} 35. f4 $6 {[%emt 0:02:23]} (35. Ba3 c3
36. Bc1 Qg6 37. Qd1 Rf2) (35. Qd1 Rd2 36. Qe1 (36. Qg1 c3) 36... c3 $17) 35...
Qg6 {[%emt 0:03:55]} (35... Nxf4 $1 36. Qe3 Nxh3 37. Qxh3) 36. f5 $1 {[%emt 0:
00:30] A beautiful idea!} exf5 {[%emt 0:00:13][%cal Rg6e4] The queen's path to
the e4-rook is now blocked.} 37. Qd1 $1 {[%emt 0:00:17][%csl Rc2,Rd5]} fxe4 {
[%emt 0:06:12]} 38. Qxd5+ {[%emt 0:00:35]} Kg7 {[%emt 0:01:33]} (38... Kh7 39.
Rg1 Bxh3 40. gxh3 {[%cal Gd5g8,Gd5e4]} Qe8 41. Qxe4+) 39. Rg1 {[%emt 0:02:39]}
(39. Bf8+ {would have done justice to the move 36.f5:} Kxf8 40. Rf1+ Bf5 41.
Rxf5+ Qxf5 42. Bxf5 $18) 39... Be8 {[%emt 0:03:17]} 40. Rf1 {[%emt 0:00:00]} h4
{[%emt 0:06:21]} 41. Bf8+ {[%emt 0:03:35]} Kh8 {[%emt 0:00:09]} 42. Ba3 {
[%emt 0:00:02]} Kg7 {[%emt 0:01:55]} 43. Rf6 {[%emt 0:00:14]} e3 {[%emt 0:10:
04]} 44. Rxg6+ {[%emt 0:00:19]} Bxg6 {[%emt 0:00:08]} 45. Qd7+ {[%emt 0:00:26]}
Kh8 {[%emt 0:00:10]} 46. Bf8 {[%emt 0:00:10] Wei Yi remains alive in the World
Cup 2017 with this win.} 1-0

[Event "FIDE World Cup"]
[Site "Tbilisi"]
[Date "2017.09.20"]
[Round "6.2"]
[White "Vachier Lagrave, Maxime"]
[Black "Aronian, Levon"]
[Result "1/2-1/2"]
[ECO "C84"]
[WhiteElo "2804"]
[BlackElo "2802"]
[Annotator "Sagar Shah"]
[PlyCount "37"]
[EventDate "2017.09.03"]
[EventType "k.o."]
[EventRounds "7"]
[EventCountry "GEO"]
[SourceTitle "CBM 181"]
[Source "ChessBase"]
[SourceDate "2017.11.10"]
[SourceVersion "1"]
[SourceVersionDate "2017.11.10"]
[SourceQuality "1"]
[TimeControl "40/5400+30:1800+30"]

1. e4 {[%emt 0:00:00]} e5 {[%emt 0:00:06]} 2. Nf3 {[%emt 0:00:00]} Nc6 {
[%emt 0:00:06]} 3. Bb5 {[%emt 0:00:00]} a6 {[%emt 0:00:06]} 4. Ba4 {[%emt 0:00:
00]} Nf6 {[%emt 0:00:07]} 5. O-O {[%emt 0:00:00]} Be7 {[%emt 0:00:05]} 6. d3 {
[%emt 0:00:22] Once the e4-pawn is defended, Black has to be careful about his
e5-pawn. The threat now is Bxc6 and Nxe5.} b5 {[%emt 0:00:06]} 7. Bb3 {[%emt 0:
00:08]} d6 {[%emt 0:00:05] Once the e5-pawn is defended, White has to be
careful about ...Na5, winning his important Ruy Lopez bishop. It's small
points like these that help you to remember complex long lines in the opening.}
8. a3 {[%emt 0:00:13]} O-O {[%emt 0:00:07]} 9. Nc3 {[%emt 0:00:05]} Bg4 $5 {
[%emt 0:00:05] This came as a big surprise to MVL. The main reason being Levon
has reached this position seven times and six times he has played ...Na5. On
the one occasion where he didn't play ...Na5, he had gone for ...Be6. I like
this move because it is very direct and has a clear threat - ...Nd4!?} (9...
Na5 10. Ba2 Be6 {is one of the main lines.}) (9... Be6 $5 {is also possible.})
10. Be3 {[%emt 0:00:39]} Nd4 {[%emt 0:00:04]} 11. Bxd4 {[%emt 0:00:05]} exd4 {
[%emt 0:00:04]} 12. Nd5 {[%emt 0:00:06]} Nxd5 {[%emt 0:00:05]} (12... Nd7 {
has been played in 50 games.} 13. h3 Bxf3 14. Qxf3 c6 15. Nxe7+ (15. Nf4 {
is also possible.}) 15... Qxe7 16. Qg3 $36 {With f4 coming up, White can hope
for a slight initiative here. Aronian himself played from the white side of
this position with a good result.} Nc5 17. Ba2 a5 18. f4 Rab8 19. Qf2 Na4 20.
Rab1 c5 21. e5 dxe5 22. fxe5 Qxe5 23. Bxf7+ Kh8 24. Rbe1 Qc7 25. Re4 Nxb2 26.
Qf5 h6 27. Re6 Rb6 28. Bg6 Rg8 29. Re8 Rf6 30. Rxg8+ Kxg8 31. Qd5+ Kf8 32. Re1
{1-0 (32) Aronian,L (2784)-Kovalev,V (2546) Berlin GER 2015}) (12... c5 13. h3
Be6 14. Nf4 Bxb3 15. cxb3 {[%cal Gb3b4] with an interesting and complex
position.}) 13. Bxd5 {[%emt 0:01:02]} (13. exd5 $6 {It looks a bit odd to
block your own bishop} f5 (13... Bf6 $11) 14. h3 Bh5 15. Re1 Bf6 $15 {[%cal
Gg7g5] Black has an edge, the idea of g5-g4 is strong. Moreover White's bishop
is not participating in the game.}) 13... Rc8 {[%emt 0:00:09] The importance
of this move will become clear very soon.} (13... Rb8 {was also possible but
White is better in that case after} 14. a4 $5 $14) 14. h3 {[%emt 0:00:09]} (14.
Bb7 $6 Rb8 15. Bxa6 $4 {and the pawn on a6 is taboo.} Rb6 $19) ({When I saw
this first game of the MVL-Aronian match, I felt like this line was already
dead for White. Because everything seemed just so forced. This was the only
spot where White could improve instead of playing h3. And this MVL did in the
third game!} 14. Bc6 $5 {Not to say that this move gives White an edge, but it
keeps more possibilities in the position.} Bf6 15. a4 Bd7 (15... Rb8 16. axb5
axb5 17. Ra7 Rb6 18. Bd5 c6 19. Bb3 Qb8 20. Ra5 Qb7 21. h3 Bxf3 22. Qxf3 Ra6
23. Rxa6 Qxa6 24. Qg3 c5 25. Bd5 $16 {White got this beautifully placed bishop
on d5.}) 16. Bxd7 Qxd7 17. Qd2 Qc6 18. b3 Rfe8 19. Rfe1 Qc5 20. g4 b4 21. Re2
c6 22. Rae1 g6 23. Kg2 Re6 24. h4 Rce8 25. Ng5 R6e7 26. f4 {1-0 (64) Vachier
Lagrave,M (2804)-Aronian,L (2802) Tbilisi GEO 2017}) 14... Bd7 $1 {[%emt 0:00:
05] Keeping the bishop and controlling the important c6-square.} (14... Bxf3
15. Qxf3 $14 {[%csl Gf7] In this opposite coloured bishop endgame, White would
be happy to press for many moves, thanks to his superior bishop.}) 15. Nxd4 {
[%emt 0:09:57]} c6 $1 {[%emt 0:00:06] Now you can see the usefulness of having
the rook on c8.} 16. Bb3 {[%emt 0:00:51]} Bf6 {[%emt 0:00:06] The bishop
attacks the knight and it cannot move as the b2-pawn is left hanging.} 17. c3 {
[%emt 0:00:06]} Bxd4 {[%emt 0:00:04]} 18. cxd4 {[%emt 0:00:06]} Qf6 {[%emt 0:
00:04] There is no way the d4-pawn can be defended.} 19. Qd2 {[%emt 0:03:35]
Maxime made this move and offered a draw, which was accepted by Levon. I think
this was a very successful opening innovation by Aronian.} (19. d5 Qxb2 {
White risks being worse here.}) (19. Qd2 Qxd4 20. a4 c5 21. axb5 axb5 22. Qc3
Qxc3 23. bxc3 Ra8 $11) 1/2-1/2